bitfinex/quotes_ETHUSD_20240701
["timestamp","ask_amount","ask_price","bid_price","bid_amount"]
[1719828117490,0.0345641,3483.7,3483.5,0.808]
[1719828117788,5.16435,3483.8,3483.5,0.808]
[1719828118288,0.0345641,3483.7,3483.5,0.808]
[1719828118496,0.02077972,3483.7,3483.5,0.808]
[1719828118651,0.02077972,3483.7,3483.3,0.808]
[1719828120284,0.02077972,3483.7,3483.3,1.53908771]
[1719828122362,2.4691,3484.2,3483.6,3.67851]
[1719828122663,0.02077972,3484.1,3483.6,3.67851]
[1719828123293,2.89101972,3484.1,3483.6,0.808]
[1719828124694,0.03355357,3484.0,3483.6,0.808]
[1719828124994,0.05433329,3484.0,3483.6,3.67858]
[1719828125195,0.05433329,3484.0,3483.6,4.65368077]
[1719828125900,0.03355357,3484.0,3483.6,4.65368077]
[1719828129981,0.03355357,3484.0,3483.6,1.78310077]
[1719828130213,0.03355357,3484.0,3483.6,0.808]
[1719828131781,0.03355357,3484.0,3483.6,3.67859]
[1719828136804,0.03355357,3484.0,3483.7,2.8705]
[1719828137007,0.03355357,3484.0,3483.9,2.87034]
[1719828137209,2.4691,3484.2,3483.9,2.87034]
[1719828137406,2.2978,3484.4,3484.1,0.808]
[1719828138607,0.02077972,3484.3,3484.1,0.808]
[1719828139416,0.03277569,3484.2,3484.1,0.808]
[1719828139794,0.02077972,3484.3,3484.1,0.808]
[1719828140122,0.03277569,3484.2,3484.1,0.808]
[1719828140288,0.02077972,3484.3,3484.1,0.808]
[1719828140489,0.0327733,3484.2,3484.1,0.808]
[1719828140690,0.02077972,3484.3,3484.1,0.808]
[1719828140912,0.03277569,3484.2,3484.1,0.808]
[1719828141109,0.02077972,3484.3,3484.1,0.808]
[1719828141423,0.03277569,3484.2,3484.1,0.808]
[1719828142229,0.03277569,3484.2,3483.7,0.808]
[1719828142230,2.2794,3484.0,3483.7,0.808]
[1719828142389,0.02077972,3483.9,3483.7,0.808]
[1719828142595,0.05331001,3483.9,3483.7,0.808]
[1719828144733,0.05331001,3483.9,3483.3,0.73108771]
[1719828145023,0.05331001,3483.9,3483.8,0.808]
[1719828148137,0.03253029,3483.9,3483.8,0.808]
[1719828151644,2.48117972,3484.3,3483.8,3.67842]
[1719828151826,0.03205295,3483.9,3483.8,2.87042]
[1719828152031,2.48117972,3484.3,3483.8,3.67842]
[1719828152226,2.48117972,3484.3,3484.0,0.808]
[1719828152944,0.02077972,3484.2,3484.0,0.808]
[1719828153244,5.35123972,3484.3,3484.0,0.808]
[1719828154143,0.03223219,3484.2,3484.0,0.808]
[1719828154451,5.35123972,3484.3,3484.0,0.808]
[1719828154909,0.03223219,3484.2,3484.0,0.808]
[1719828155402,5.35123972,3484.3,3484.0,0.808]
[1719828155611,0.03217244,3484.1,3484.0,0.808]
[1719828155909,0.03217244,3484.1,3484.0,1.2365342]
[1719828156153,5.35123972,3484.3,3484.0,1.2365342]
[1719828156332,0.03217244,3484.1,3484.0,1.2365342]
[1719828156528,5.35123972,3484.3,3484.0,1.2365342]
[1719828156755,0.03218301,3484.1,3483.6,5.26059]
[1719828156945,2.90240275,3484.2,3483.9,0.808]
[1719828157244,0.03212327,3484.0,3483.9,0.808]
[1719828157720,2.87016,3484.2,3483.9,0.808]
[1719828157921,0.03212327,3484.0,3483.9,0.808]
[1719828158122,2.87016,3484.2,3483.9,0.808]
[1719828158332,0.03212327,3484.0,3483.9,0.808]
[1719828158513,2.48117972,3484.3,3483.9,0.808]
[1719828158708,0.03212327,3484.0,3483.9,1.41485]
[1719828158925,2.86995,3484.4,3483.9,1.41485]
[1719828159112,2.86995,3484.4,3484.1,0.808]
[1719828159341,0.02077972,3484.3,3484.1,0.808]
[1719828161152,2.48837972,3484.5,3484.1,0.808]
[1719828161352,5.35822972,3484.5,3484.1,0.808]
[1719828166137,5.35822972,3484.5,3484.1,0.808]
[1719828169144,0.0323627,3484.4,3484.1,0.808]
[1719828169345,2.92309242,3484.4,3483.6,5.26056]
[1719828169544,2.92309242,3484.4,3483.9,0.808]
[1719828173287,2.92309242,3484.4,3484.1,0.808]
[1719828173485,0.05314242,3484.4,3484.1,0.808]
[1719828176690,0.0323627,3484.4,3484.3,2.87001]
[1719828176894,2.3622,3485.4,3484.3,9.43156479]
[1719828177191,0.03037309,3485.3,3484.6,2.86975]
[1719828177366,0.03037309,3485.3,3484.9,0.808]
[1719828177367,2.92039281,3485.3,3484.9,0.808]
[1719828181382,2.92039281,3485.3,3484.9,1.175768]
[1719828182062,0.03037309,3485.3,3485.1,0.808]
[1719828183601,2.43267972,3485.6,3485.1,0.808]
[1719828183893,2.43267972,3485.6,3485.0,2.86938]
[1719828184099,0.0281555,3485.5,3485.3,0.808]
[1719828184674,0.0281555,3485.5,3485.3,3.67719]
[1719828184889,0.02077972,3485.7,3485.3,0.808]
[1719828185065,0.0283566,3485.6,3485.3,0.808]
[1719828185494,0.0283566,3485.6,3485.5,0.808]
[1719828186680,0.02077972,3485.9,3485.5,0.808]
[1719828186875,0.02748793,3485.8,3485.7,0.808]
[1719828188705,2.37087972,3486.1,3485.7,0.808]
[1719828188907,2.37087972,3486.1,3485.1,2.3206]
[1719828188908,0.02762617,3486.0,3485.9,0.808]
[1719828190238,0.04840589,3486.0,3485.6,0.808]
[1719828190930,0.04840589,3486.0,3485.6,3.67694]
[1719828191425,0.04840589,3486.0,3485.6,0.808]
[1719828194914,2.91702589,3486.0,3485.6,0.808]
[1719828195071,2.91702589,3486.0,3485.2,7.32]
[1719828195072,2.2573,3485.6,3485.2,7.32]
[1719828195281,0.02715323,3485.5,3485.2,8.128]
[1719828195527,0.02715323,3485.5,3485.4,3.67711]
[1719828195843,2.29847972,3485.8,3485.4,3.67711]
[1719828195844,0.02077972,3485.8,3485.4,4.776821]
[1719828196120,2.29847972,3486.0,3485.6,0.808]
[1719828196273,2.29847972,3486.0,3485.8,0.808]
[1719828196274,0.02739201,3485.9,3485.8,0.808]
[1719828196672,2.31747972,3486.2,3485.8,0.808]
[1719828196931,0.02724663,3486.1,3485.8,0.808]
[1719828199289,0.02724663,3486.1,3486.0,0.808]
[1719828199669,0.02077972,3486.4,3486.0,0.808]
[1719828200077,0.02571256,3486.3,3486.0,0.808]
[1719828200272,0.02571256,3486.3,3486.2,0.808]
[1719828201636,0.02077972,3486.4,3486.2,0.808]
[1719828204697,0.02077972,3486.4,3486.0,0.808]
[1719828205400,2.4662,3486.5,3486.2,0.808]
[1719828205640,0.02077972,3486.4,3486.0,0.891147]
[1719828205852,0.02077972,3486.4,3485.8,0.808]
[1719828206057,2.45577972,3486.4,3486.0,0.808]
[1719828206220,2.45577972,3486.4,3485.6,5.12987]
[1719828206417,2.88914972,3486.3,3485.6,2.86887]
[1719828206617,2.86855,3486.1,3485.6,1.7178661]
[1719828206936,2.86838,3486.3,3485.6,1.7178661]
[1719828206937,2.38247972,3486.0,3485.6,1.7178661]
[1719828207115,2.38247972,3486.0,3485.8,0.808]
[1719828207116,2.3617,3486.0,3485.8,0.808]
[1719828208377,2.32467972,3486.2,3485.8,0.808]
[1719828209757,2.32467972,3486.2,3486.0,0.808]
[1719828210349,2.32467972,3486.2,3485.8,0.808]
[1719828211439,2.32467972,3486.2,3486.0,0.808]
[1719828212458,2.32467972,3486.2,3485.8,0.808]
[1719828212666,5.19318972,3486.2,3485.8,0.808]
[1719828221054,2.32467972,3486.2,3485.8,0.808]
[1719828221599,2.32467972,3486.2,3486.0,0.808]
[1719828222197,5.27858,3486.8,3486.0,4.044275]
[1719828222406,0.02077972,3486.7,3486.2,0.808]
[1719828222908,5.29935972,3486.8,3486.4,0.808]
[1719828223209,2.43137972,3486.8,3486.4,0.808]
[1719828223419,2.43137972,3486.8,3486.6,0.808]
[1719828223568,2.4106,3486.8,3486.6,0.808]
[1719828228609,2.3305,3487.3,3486.7,2.86803]
[1719828228764,0.02077972,3487.2,3487.0,0.808]
[1719828229968,0.02077972,3487.2,3486.7,2.86803]
[1719828230201,0.02077972,3487.2,3486.9,0.808]
[1719828230597,0.02077972,3487.2,3486.3,7.32]
[1719828230598,0.02077972,3487.4,3487.1,0.808]
[1719828231512,0.02077972,3487.5,3487.1,0.808]
[1719828231694,0.02077972,3487.5,3486.9,3.67587]
[1719828232087,2.88816972,3487.5,3486.9,3.67587]
[1719828234189,2.88816972,3487.5,3486.9,0.808]
[1719828234915,2.86746,3487.4,3486.9,0.808]
[1719828235081,0.02077972,3487.3,3486.9,0.808]
[1719828237883,2.38667972,3487.3,3486.9,0.808]
[1719828238085,0.02077972,3487.2,3486.9,0.808]
[1719828239716,0.02077972,3487.2,3487.1,0.808]
[1719828240303,0.02077972,3487.2,3486.9,0.808]
[1719828240617,0.02077972,3487.2,3486.9,1.703786]
[1719828240813,0.02077972,3487.2,3487.1,0.808]
[1719828241014,0.02077972,3487.3,3487.1,0.808]
[1719828241553,2.88833972,3487.3,3486.9,0.895786]
[1719828241850,0.02077972,3487.2,3487.0,0.808]
[1719828242334,5.32394972,3487.2,3486.4,2.86826]
[1719828242494,2.86777,3487.1,3486.6,0.808]
[1719828242695,0.02077972,3487.0,3486.6,0.808]
[1719828245918,5.30315,3487.2,3486.6,0.808]
[1719828245919,5.30315,3487.2,3486.8,0.808]
[1719828246249,5.32392972,3487.2,3486.8,0.808]
[1719828248381,2.4355,3487.2,3486.8,0.808]
[1719828248553,2.45627972,3487.2,3486.8,0.808]
[1719828255961,2.45627972,3487.2,3487.0,0.808]
[1719828256176,2.4355,3487.2,3487.0,0.808]
[1719828256485,2.4355,3487.2,3486.8,3.67594]
[1719828256790,2.45627972,3487.2,3486.8,3.67594]
[1719828259893,2.45627972,3487.2,3486.8,0.808]
[1719828260578,2.45627972,3487.2,3486.4,4.42118]
[1719828260579,2.86776,3487.1,3486.4,4.42118]
[1719828260784,0.02077972,3487.0,3486.7,0.808]
[1719828261010,2.88853972,3487.1,3486.7,0.808]
[1719828261896,0.02077972,3487.1,3486.7,0.808]
[1719828263029,0.02077972,3487.1,3486.3,9.754]
[1719828263228,5.26724,3486.9,3486.3,7.32]
[1719828263517,2.3993,3486.7,3486.3,7.32]
[1719828263717,0.02077972,3486.6,3486.3,7.32]
[1719828263899,2.3993,3486.7,3486.3,0.808]
[1719828264093,2.3993,3486.7,3486.0,3.236265]
[1719828264302,2.3993,3486.7,3486.3,0.808]
[1719828264696,0.02077972,3486.6,3486.0,0.367685]
[1719828264906,0.02077972,3486.6,3485.8,9.6446]
[1719828264907,0.02077972,3486.6,3485.8,7.32]
[1719828265120,0.02077972,3486.6,3486.1,0.808]
[1719828269526,0.02077972,3486.6,3486.3,0.808]
[1719828270503,0.02077972,3486.6,3486.1,0.808]
[1719828272510,0.02077972,3486.6,3485.8,7.32]
[1719828272720,2.3771,3486.5,3486.0,0.808]
[1719828273036,0.02077972,3486.4,3486.0,0.808]
[1719828276348,0.02077972,3486.4,3486.1,0.808]
[1719828277946,0.02077972,3486.7,3486.3,0.808]
[1719828278449,0.02077972,3486.7,3486.0,2.4792]
[1719828278649,0.02077972,3486.7,3486.3,0.808]
[1719828286266,2.50277972,3486.8,3486.3,0.808]
[1719828286464,2.50277972,3486.8,3486.5,0.808]
[1719828287360,2.482,3486.8,3486.5,0.808]
[1719828291158,0.02077972,3487.0,3486.5,0.808]
[1719828291463,0.02077972,3487.0,3486.7,0.808]
[1719828296056,0.02077972,3487.0,3486.5,0.808]
[1719828296936,0.53596097,3486.9,3486.5,0.80473]
[1719828297137,2.3162,3486.7,3486.5,0.808]
[1719828298883,0.02077972,3486.6,3486.0,2.4792]
[1719828299098,0.02077972,3486.6,3486.4,0.808]
[1719828300571,0.02077972,3486.6,3486.3,0.808]
[1719828301064,2.33697972,3486.7,3486.3,0.808]
[1719828302266,0.02077972,3486.6,3486.3,0.808]
[1719828304771,2.86821,3486.5,3485.8,7.32]
[1719828304944,0.02077972,3486.6,3485.8,7.32]
[1719828304945,2.3909,3486.3,3485.8,7.32]
[1719828305150,2.41167972,3486.3,3486.0,0.808]
[1719828305660,0.02077972,3486.2,3486.0,0.808]
[1719828305836,2.41167972,3486.3,3486.0,0.808]
[1719828306448,2.3909,3486.3,3486.0,0.808]
[1719828306655,2.3909,3486.3,3486.2,0.808]
[1719828310372,2.31457972,3486.5,3486.2,0.808]
[1719828310776,2.2938,3486.5,3485.8,12.44077]
[1719828310981,2.2938,3486.5,3486.0,2.86861]
[1719828311163,2.2938,3486.5,3486.4,0.808]
[1719828313082,2.2815,3487.1,3486.4,0.808]
[1719828313253,0.02077972,3487.0,3486.6,0.808]
[1719828314264,2.86734,3487.6,3486.9,0.808]
[1719828314582,0.02077972,3487.5,3487.2,0.808]
[1719828315483,0.02077972,3487.5,3487.0,0.808]
[1719828316059,2.88816972,3487.5,3487.0,0.808]
[1719828316254,2.4127,3487.4,3486.4,2.86826]
[1719828316457,2.8677,3487.2,3486.8,0.808]
[1719828316658,0.02077972,3487.1,3486.8,0.808]
[1719828318989,0.02077972,3487.2,3487.0,0.808]
[1719828321561,0.02077972,3487.2,3486.8,0.808]
[1719828321753,2.88840972,3487.2,3486.8,0.808]
[1719828322088,0.02077972,3487.2,3486.8,0.808]
[1719828323420,2.43347972,3487.4,3486.8,0.808]
[1719828323696,2.43347972,3487.4,3487.0,0.808]
[1719828324851,0.02077972,3487.3,3487.0,0.808]
[1719828325058,2.4127,3487.4,3487.0,0.808]
[1719828325289,2.4127,3487.4,3486.7,2.92538432]
[1719828325290,0.02077972,3487.3,3486.7,2.92538432]
[1719828325480,0.02077972,3487.3,3487.0,0.808]
[1719828326488,2.4127,3487.4,3487.0,0.808]
[1719828326691,0.02077972,3487.3,3487.0,0.808]
[1719828327387,0.02077972,3487.3,3486.6,2.86811]
[1719828327590,2.3109,3487.1,3486.6,0.808]
[1719828327789,2.33167972,3487.1,3486.6,0.808]
[1719828329511,2.86784,3487.0,3486.6,0.808]
[1719828329804,2.86797,3486.8,3486.3,8.128]
[1719828330003,2.3585,3486.7,3486.3,0.808]
[1719828330762,2.4005,3487.3,3486.3,0.894971]
[1719828331023,2.4005,3487.3,3487.2,0.808]
[1719828331219,2.4005,3487.3,3487.0,0.808]
[1719828331558,0.02077972,3487.2,3487.0,0.808]
[1719828331760,0.08854603,3487.2,3487.0,0.808]
[1719828332879,0.08854603,3487.2,3486.8,0.808]
[1719828333966,0.08854603,3487.2,3486.4,0.808]
[1719828333967,5.13389,3487.0,3486.4,0.808]
[1719828334160,0.02077972,3486.9,3486.6,0.808]
[1719828334414,0.08865882,3486.9,3486.1,5.3192]
[1719828334624,2.86796,3486.8,3486.4,0.808]
[1719828334917,2.88881972,3486.7,3486.4,0.808]
[1719828335065,0.06776252,3486.7,3486.4,0.808]
[1719828335260,2.86804,3486.7,3486.4,0.808]
[1719828335464,0.06770422,3486.6,3486.4,0.808]
[1719828339180,5.27382,3486.6,3486.4,0.808]
[1719828339381,0.06764592,3486.5,3486.4,0.808]
[1719828340501,5.29448972,3486.8,3486.4,0.808]
[1719828340686,0.06755243,3486.5,3486.4,0.808]
[1719828340886,5.29448972,3486.8,3486.4,0.808]
[1719828341091,0.06766904,3486.7,3486.4,0.808]
[1719828341287,5.29448972,3486.8,3486.4,0.808]
[1719828341490,0.06766904,3486.7,3486.4,0.808]
[1719828341691,5.29448972,3486.8,3486.4,0.808]
[1719828341885,0.06766904,3486.7,3486.4,0.808]
[1719828342092,5.29448972,3486.8,3486.4,0.808]
[1719828342289,0.06766904,3486.7,3486.4,0.808]
[1719828342508,5.29448972,3486.8,3486.4,0.808]
[1719828342673,0.06761074,3486.6,3486.4,0.808]
[1719828342873,5.29448972,3486.8,3486.4,0.808]
[1719828343074,0.06766904,3486.7,3486.4,0.808]
[1719828343271,0.02077972,3486.7,3486.0,3.0]
[1719828343482,2.86828,3486.4,3486.2,0.808]
[1719828343695,0.06686654,3486.3,3486.2,0.808]
[1719828344306,2.93523654,3486.3,3486.2,0.808]
[1719828344512,2.93523654,3486.3,3486.1,0.808]
[1719828348010,2.93523654,3486.3,3485.8,3.0]
[1719828348211,2.86859,3486.1,3485.6,7.32]
[1719828348423,2.86859,3486.1,3485.9,0.808]
[1719828349114,0.06586966,3486.0,3485.9,0.808]
[1719828350817,2.93447966,3486.0,3485.4,2.4601]
[1719828351020,2.86879,3485.8,3485.6,0.808]
[1719828351314,2.93211626,3485.7,3485.5,0.808]
[1719828352122,0.06325626,3485.7,3485.5,0.808]
[1719828352281,2.86879,3485.8,3485.5,0.808]
[1719828352481,0.0629098,3485.7,3485.5,0.808]
[1719828352719,2.4915,3486.3,3485.5,4.14217666]
[1719828352887,0.06226954,3485.6,3485.5,2.464]
[1719828353215,2.86862,3486.0,3485.5,3.272]
[1719828353514,2.86862,3486.0,3485.9,0.808]
[1719828353896,2.86862,3486.0,3485.7,0.808]
[1719828355248,2.86862,3486.0,3485.9,0.808]
[1719828356747,2.86845,3486.2,3485.9,0.808]
[1719828357246,2.86854,3486.1,3485.9,0.808]
[1719828357944,2.86846,3486.2,3485.9,0.808]
[1719828358811,2.86853,3486.1,3485.9,0.808]
[1719828360441,5.35989,3486.3,3485.9,0.808]
[1719828361313,2.86845,3486.2,3485.9,0.808]
[1719828361733,2.4915,3486.3,3485.9,0.808]
[1719828362045,5.35988,3486.3,3485.9,0.808]
[1719828364266,0.06313082,3486.2,3485.9,0.808]
[1719828364555,5.35988,3486.3,3485.9,0.808]
[1719828364753,0.0629109,3486.1,3485.9,0.808]
[1719828364952,5.35988,3486.3,3485.9,0.808]
[1719828365158,0.06285257,3486.0,3485.9,0.808]
[1719828365342,5.35988,3486.3,3485.9,0.808]
[1719828365548,0.06285257,3486.0,3485.9,0.808]
[1719828365858,5.35988,3486.3,3485.9,0.808]
[1719828366042,0.06278793,3486.0,3485.9,0.808]
[1719828366269,5.35988,3486.3,3485.9,0.808]
[1719828366435,0.06298186,3486.0,3485.9,0.808]
[1719828366634,5.35988,3486.3,3485.9,0.808]
[1719828366855,0.06294954,3486.0,3485.9,0.808]
[1719828367059,5.35988,3486.3,3485.9,0.808]
[1719828367264,0.06294954,3486.0,3485.9,0.808]
[1719828367860,5.35988,3486.3,3485.9,0.808]
[1719828368361,0.06309851,3486.2,3485.9,0.808]
[1719828368538,5.35988,3486.3,3485.9,0.808]
[1719828368866,0.06304019,3486.1,3485.9,0.808]
[1719828369051,2.4915,3486.3,3485.9,0.808]
[1719828369249,0.06298186,3486.0,3485.9,0.808]
[1719828369445,2.4915,3486.3,3485.9,0.808]
[1719828369638,0.06298186,3486.0,3485.9,0.808]
[1719828369839,5.3599,3486.3,3485.9,0.808]
[1719828370021,0.06301418,3486.0,3485.9,0.808]
[1719828370227,6.18478797,3486.3,3485.7,0.808]
[1719828370767,2.86854,3486.1,3485.7,0.808]
[1719828371272,0.06312729,3486.0,3485.7,0.808]
[1719828371738,0.02077972,3486.2,3485.7,0.808]
[1719828371939,0.06306897,3485.9,3485.7,0.808]
[1719828372150,2.88922972,3486.2,3485.7,0.808]
[1719828372329,0.06301064,3485.8,3485.7,0.808]
[1719828372529,2.88922972,3486.2,3485.7,0.808]
[1719828372729,0.06301064,3485.8,3485.7,0.808]
[1719828372952,2.88922972,3486.2,3485.7,0.808]
[1719828373148,0.06301064,3485.8,3485.7,0.808]
[1719828373357,2.88922972,3486.2,3485.7,0.808]
[1719828373538,0.06301064,3485.8,3485.7,0.808]
[1719828373736,2.88922972,3486.2,3485.7,0.808]
[1719828373973,0.06301064,3485.8,3485.7,0.808]
[1719828374173,2.88922972,3486.2,3485.7,0.808]
[1719828374371,0.06300714,3485.8,3485.7,0.808]
[1719828374531,2.88922972,3486.2,3485.7,0.808]
[1719828374868,2.93179714,3485.8,3485.4,2.2956]
[1719828375179,0.06302233,3485.7,3485.5,0.808]
[1719828375469,2.86879,3485.8,3485.5,0.808]
[1719828375941,0.06302233,3485.7,3485.5,0.808]
[1719828376127,2.86879,3485.8,3485.5,0.808]
[1719828376458,0.062964,3485.6,3485.5,0.808]
[1719828376630,2.86886,3485.7,3485.5,0.808]
[1719828376832,0.062964,3485.6,3485.5,0.808]
[1719828379048,2.86883,3485.8,3485.5,0.808]
[1719828379260,2.8692,3485.3,3484.4,2.86992]
[1719828379459,2.8692,3485.3,3484.6,0.28832109]
[1719828379739,2.93175901,3485.2,3484.9,0.808]
[1719828384472,2.86944,3485.0,3484.6,3.0]
[1719828384674,2.86954,3484.9,3484.6,0.808]
[1719828384980,2.93202346,3484.9,3484.7,0.808]
[1719828385776,0.06248346,3484.9,3484.7,0.808]
[1719828386078,2.86941,3485.1,3484.7,0.808]
[1719828386295,0.06206925,3484.8,3484.7,0.808]
[1719828386479,2.86941,3485.1,3484.7,1.13173]
[1719828386779,2.86945,3485.0,3484.5,3.2373]
[1719828386976,0.06212762,3484.9,3484.5,3.2373]
[1719828387277,0.06212762,3484.9,3484.7,0.808]
[1719828389591,2.93165762,3484.9,3484.5,2.4293]
[1719828389788,2.93165762,3484.9,3484.6,0.808]
[1719828389993,2.93165762,3484.9,3484.3,2.4993]
[1719828390147,2.93165762,3484.9,3484.6,0.808]
[1719828390448,2.86969,3484.7,3484.2,0.808]
[1719828390651,2.89046972,3484.7,3483.9,2.3482]
[1719828390851,0.06148054,3484.6,3484.3,0.808]
[1719828391053,0.06148054,3484.6,3483.8,2.3482]
[1719828391054,2.8699,3484.5,3483.8,2.3482]
[1719828391254,2.45928054,3484.6,3484.2,0.808]
[1719828391488,0.06152298,3484.4,3484.2,0.808]
[1719828391651,5.26757,3484.6,3484.2,0.808]
[1719828391857,0.0614646,3484.3,3484.2,0.808]
[1719828392108,5.19111,3484.8,3484.2,0.808]
[1719828392271,0.0614646,3484.3,3484.2,0.808]
[1719828392447,5.19111,3484.8,3484.2,0.808]
[1719828392667,0.0614646,3484.3,3484.2,0.808]
[1719828392919,5.19111,3484.8,3484.2,0.808]
[1719828393115,0.0614646,3484.3,3484.2,0.808]
[1719828393269,2.86979,3484.6,3484.2,0.808]
[1719828393475,0.0614646,3484.3,3484.0,0.05739687]
[1719828393676,2.86979,3484.6,3484.2,0.808]
[1719828393871,2.86979,3484.6,3484.4,0.808]
[1719828394415,0.06156545,3484.5,3484.4,0.808]
[1719828396993,2.8697,3484.7,3484.4,0.808]
[1719828397172,0.06162383,3484.6,3484.4,0.808]
[1719828397785,2.93140383,3484.6,3484.4,0.808]
[1719828398543,2.93140383,3484.6,3484.2,0.808]
[1719828402434,0.06162383,3484.6,3484.2,1.19453968]
[1719828402580,5.19111,3484.8,3484.4,0.808]
[1719828402781,0.05946323,3484.7,3484.4,0.808]
[1719828402971,5.19111,3484.8,3484.4,0.808]
[1719828403178,0.0592692,3484.7,3484.4,0.808]
[1719828403372,2.86903,3485.5,3484.4,0.808]
[1719828403373,2.86936,3485.1,3484.4,0.808]
[1719828403692,2.92889431,3485.0,3484.5,0.0573906]
[1719828403874,0.05944431,3485.0,3484.6,0.808]
[1719828404075,0.05944431,3485.0,3484.8,0.808]
[1719828404634,0.05956701,3484.9,3484.8,0.808]
[1719828405121,2.86924,3485.3,3484.8,0.808]
[1719828405328,0.05957298,3484.9,3484.8,0.808]
[1719828405507,2.86924,3485.3,3484.8,0.808]
[1719828405711,0.05957298,3484.9,3484.8,0.808]
[1719828405946,2.86924,3485.3,3484.8,0.808]
[1719828406401,0.05955405,3485.2,3484.8,0.808]
[1719828406728,5.20974,3485.4,3484.8,0.808]
[1719828406937,0.0596892,3485.1,3484.8,0.808]
[1719828407228,0.05963084,3485.0,3484.8,0.808]
[1719828407435,2.86919,3485.3,3484.8,0.808]
[1719828407583,0.05974755,3485.2,3484.8,0.808]
[1719828407790,2.86919,3485.3,3484.8,0.808]
[1719828407990,0.05974755,3485.2,3484.8,0.808]
[1719828408233,2.86919,3485.3,3484.8,0.808]
[1719828408539,0.05974755,3485.2,3484.8,0.808]
[1719828408706,5.24369,3485.0,3484.5,0.808]
[1719828408914,2.3742,3485.0,3484.5,0.808]
[1719828409100,0.0578186,3484.9,3484.5,0.808]
[1719828410290,0.0578186,3484.9,3484.2,0.38653968]
[1719828410628,0.0578186,3484.9,3484.5,0.808]
[1719828412640,2.8696,3484.8,3484.3,0.85844797]
[1719828412938,0.05753422,3484.7,3484.5,0.808]
[1719828413435,0.05747584,3484.6,3484.5,0.808]
[1719828413609,2.8696,3484.8,3484.5,0.808]
[1719828413798,0.05753422,3484.7,3484.5,0.808]
[1719828414001,2.8696,3484.8,3484.5,0.808]
[1719828414329,0.05753422,3484.7,3484.5,0.808]
[1719828414698,2.8696,3484.8,3484.5,0.808]
[1719828414899,0.05747584,3484.6,3484.5,0.808]
[1719828415105,2.8696,3484.8,3484.5,0.808]
[1719828415320,0.05747584,3484.6,3484.5,0.808]
[1719828415523,2.8696,3484.8,3484.5,0.808]
[1719828416008,0.05753422,3484.7,3484.5,0.808]
[1719828416342,2.8696,3484.8,3484.5,0.808]
[1719828416515,0.05747584,3484.6,3484.5,0.808]
[1719828416720,2.8696,3484.8,3484.5,0.808]
[1719828416918,0.05747584,3484.6,3484.5,0.808]
[1719828417432,2.8696,3484.8,3484.5,0.808]
[1719828417637,0.05753422,3484.7,3484.5,0.808]
[1719828417839,2.8696,3484.8,3484.5,0.808]
[1719828418040,0.05753422,3484.7,3484.5,0.808]
[1719828418332,2.8696,3484.8,3484.5,0.808]
[1719828418540,0.05747584,3484.6,3484.5,0.808]
[1719828419032,2.8696,3484.8,3484.5,0.808]
[1719828419212,0.05753422,3484.7,3484.5,0.808]
[1719828419408,2.8696,3484.8,3484.5,0.808]
[1719828419614,0.05753422,3484.7,3484.5,0.808]
[1719828419835,2.8696,3484.8,3484.5,0.808]
[1719828420150,0.05753422,3484.7,3484.5,0.808]
[1719828420650,0.05747584,3484.6,3484.5,0.808]
[1719828421165,5.24364,3485.0,3484.5,0.808]
[1719828421364,0.05747584,3484.6,3484.5,0.808]
[1719828421832,2.8696,3484.8,3484.5,0.808]
[1719828422015,0.05753422,3484.7,3484.5,0.808]
[1719828422215,2.8696,3484.8,3484.5,0.808]
[1719828422416,0.05753422,3484.7,3484.5,0.808]
[1719828422652,2.8696,3484.8,3484.5,0.808]
[1719828422857,0.05747584,3484.6,3484.5,0.808]
[1719828423056,2.8696,3484.8,3484.5,0.808]
[1719828423350,0.05747484,3484.6,3484.5,0.808]
[1719828423553,2.8696,3484.8,3484.5,0.808]
[1719828424150,0.05753322,3484.7,3484.5,0.808]
[1719828424453,2.8696,3484.8,3484.5,0.808]
[1719828424620,0.05747484,3484.6,3484.5,0.808]
[1719828424822,2.8696,3484.8,3484.5,0.808]
[1719828425030,0.05753322,3484.7,3484.5,0.808]
[1719828425234,2.8696,3484.8,3484.5,0.808]
[1719828425557,0.05753322,3484.7,3484.5,0.808]
[1719828426055,0.05747484,3484.6,3484.5,0.808]
[1719828426241,5.24364,3485.0,3484.5,0.808]
[1719828426466,2.92716996,3484.9,3484.5,0.808]
[1719828428257,2.86968,3484.7,3484.1,2.4576]
[1719828428455,2.86968,3484.7,3483.7,2.87048]
[1719828428456,5.31430654,3484.6,3484.3,0.808]
[1719828429216,2.92740654,3484.6,3484.3,0.808]
[1719828430638,2.86985,3484.5,3484.3,0.808]
[1719828430992,2.87008,3484.3,3483.8,2.465]
[1719828431271,2.87008,3484.3,3483.4,2.87073]
[1719828431272,0.05761663,3484.2,3483.7,0.808]
[1719828431685,0.05761663,3484.2,3483.9,0.808]
[1719828432138,5.24318,3484.3,3483.9,0.808]
[1719828432462,0.05755825,3484.1,3483.9,0.808]
[1719828432673,5.24318,3484.3,3483.9,0.808]
[1719828433232,0.05761663,3484.2,3483.9,0.808]
[1719828433466,5.24318,3484.3,3483.9,0.808]
[1719828433661,0.05755825,3484.1,3483.9,0.808]
[1719828434012,5.24318,3484.3,3483.9,0.808]